[Event "*** Titled Tuesday 3|2 Blitz"]
[Site "Chess.com"]
[Date "2017.05.02"]
[Round "3"]
[White "Larax"]
[Black "SidArun"]
[Result "0-1"]
[WhiteElo "1970"]
[BlackElo "2073"]
[TimeControl "180+2"]
[EndTime "13:34:34 PDT"]
[Termination "SidArun won by resignation"]

1. e4 {[%clk 0:03:02]} 1... c6 {[%clk 0:02:59.4]} 2. d4 {[%clk 0:02:57.4]} 2...
d5 {[%clk 0:03:01.3]} 3. Nc3 {[%clk 0:02:51.9]} 3... dxe4 {[%clk 0:03:01.3]} 4.
Nxe4 {[%clk 0:02:53.5]} 4... Bf5 {[%clk 0:03:02.8]} 5. Ng3 {[%clk 0:02:40.4]}
5... Bg6 {[%clk 0:03:04.7]} 6. h4 {[%clk 0:02:41.4]} 6... h6 {[%clk 0:03:04.4]}
7. Nf3 {[%clk 0:02:40.6]} 7... Nd7 {[%clk 0:03:05.5]} 8. h5 {[%clk 0:02:32.2]}
8... Bh7 {[%clk 0:03:06.2]} 9. Bd3 {[%clk 0:02:33.9]} 9... Bxd3 {[%clk
0:03:07.8]} 10. Qxd3 {[%clk 0:02:35.5]} 10... e6 {[%clk 0:03:09.1]} 11. Bd2
{[%clk 0:02:28.3]} 11... Ngf6 {[%clk 0:03:09.4]} 12. O-O-O {[%clk 0:02:29]}
12... Be7 {[%clk 0:03:08.2]} 13. Ne4 {[%clk 0:02:24.4]} 13... Nxe4 {[%clk
0:03:09.2]} 14. Qxe4 {[%clk 0:02:17.9]} 14... Nf6 {[%clk 0:03:11.1]} 15. Qe2
{[%clk 0:02:18.9]} 15... Qd5 {[%clk 0:03:11.4]} 16. Kb1 {[%clk 0:01:55.6]} 16...
Qe4 {[%clk 0:03:11.2]} 17. Be3 {[%clk 0:01:51.1]} 17... Ng4 {[%clk 0:02:30.8]}
18. Nd2 {[%clk 0:01:45.6]} 18... Qf5 {[%clk 0:02:28.8]} 19. f3 {[%clk
0:01:40.3]} 19... Nxe3 {[%clk 0:02:27.7]} 20. Qxe3 {[%clk 0:01:41.9]} 20... Bg5
{[%clk 0:02:29.1]} 21. Qe2 {[%clk 0:01:43.2]} 21... Bxd2 {[%clk 0:02:29.3]} 22.
Qxd2 {[%clk 0:01:43.4]} 22... O-O-O {[%clk 0:02:31.1]} 23. Qe3 {[%clk
0:01:35.1]} 23... Rd7 {[%clk 0:02:29]} 24. g4 {[%clk 0:01:36]} 24... Qb5 {[%clk
0:02:27.6]} 25. b3 {[%clk 0:01:34.1]} 25... Rhd8 {[%clk 0:02:26.8]} 26. c4
{[%clk 0:01:35.6]} 26... Qb6 {[%clk 0:02:26.1]} 27. c5 {[%clk 0:01:33.3]} 27...
Qb4 {[%clk 0:02:26.2]} 28. Qe5 {[%clk 0:01:27.5]} 28... Rxd4 {[%clk 0:02:17.8]}
29. Rxd4 {[%clk 0:01:18.6]} 29... Qxd4 {[%clk 0:02:17.7]} 30. Qxd4 {[%clk
0:01:13.9]} 30... Rxd4 {[%clk 0:02:17.4]} 31. Kc2 {[%clk 0:01:15.4]} 31... Rf4
{[%clk 0:02:13.1]} 32. Rh3 {[%clk 0:01:05.7]} 32... Rd4 {[%clk 0:02:08.5]} 33.
Kc3 {[%clk 0:01:05]} 33... Rd5 {[%clk 0:02:08.2]} 34. b4 {[%clk 0:01:05.6]}
34... a5 {[%clk 0:02:07.8]} 35. a3 {[%clk 0:01:06.7]} 35... axb4+ {[%clk
0:02:08]} 36. axb4 {[%clk 0:01:07.6]} 36... Kc7 {[%clk 0:02:09.4]} 37. f4 {[%clk
0:01:07.4]} 37... Kd7 {[%clk 0:02:08.4]} 38. Rg3 {[%clk 0:01:05.8]} 38... f6
{[%clk 0:02:03.8]} 39. Kc4 {[%clk 0:01:05.3]} 39... e5 {[%clk 0:01:59.6]} 40.
fxe5 {[%clk 0:01:02.6]} 40... Rxe5 {[%clk 0:01:59.7]} 41. b5 {[%clk 0:01:00.9]}
41... Re4+ {[%clk 0:01:48.8]} 42. Kd3 {[%clk 0:00:50.7]} 42... Ra4 {[%clk
0:01:49]} 43. bxc6+ {[%clk 0:00:48.4]} 43... Kxc6 {[%clk 0:01:49]} 44. Rg1
{[%clk 0:00:44.6]} 44... Kxc5 {[%clk 0:01:49]} 45. Ke3 {[%clk 0:00:45.8]} 45...
b5 {[%clk 0:01:42.5]} 46. Rc1+ {[%clk 0:00:45.8]} 46... Rc4 {[%clk 0:01:42.6]}
47. Rg1 {[%clk 0:00:45.5]} 47... b4 {[%clk 0:01:42.5]} 48. Kd3 {[%clk
0:00:46.6]} 48... Rc3+ {[%clk 0:01:42.6]} 49. Kd2 {[%clk 0:00:47.5]} 49... Kc4
{[%clk 0:01:43.4]} 50. Ra1 {[%clk 0:00:32.7]} 50... Rg3 {[%clk 0:01:39.5]} 51.
Ra7 {[%clk 0:00:31.6]} 51... Rg2+ {[%clk 0:01:37.9]} 52. Ke3 {[%clk 0:00:32.2]}
52... Rxg4 {[%clk 0:01:38.4]} 53. Rc7+ {[%clk 0:00:33.9]} 53... Kb3 {[%clk
0:01:39.3]} 54. Rb7 {[%clk 0:00:34.7]} 54... g6 {[%clk 0:01:30.5]} 55. hxg6
{[%clk 0:00:35.2]} 55... Rxg6 {[%clk 0:01:30.4]} 56. Kd4 {[%clk 0:00:34.3]}
56... Rg4+ {[%clk 0:01:31]} 57. Kc5 {[%clk 0:00:34.7]} 57... Kc3 {[%clk
0:01:31.8]} 58. Rf7 {[%clk 0:00:34.7]} 58... Rf4 {[%clk 0:01:32.6]} 59. Rh7
{[%clk 0:00:35.9]} 59... b3 {[%clk 0:01:32.4]} 60. Rxh6 {[%clk 0:00:37.1]} 60...
Rf5+ {[%clk 0:01:32]} 61. Kd6 {[%clk 0:00:37.3]} 61... Rf2 {[%clk 0:01:18.3]}
62. Kc5 {[%clk 0:00:34.2]} 62... b2 {[%clk 0:01:17]} 63. Rh1 {[%clk 0:00:32.3]}
63... Kc2 {[%clk 0:01:18.2]} 0-1

[Event "*** Titled Tuesday 3|2 Blitz"]
[Site "Chess.com"]
[Date "2017.05.02"]
[Round "3"]
[White "Blitzstream"]
[Black "162a54f5d"]
[Result "1-0"]
[WhiteElo "2462"]
[BlackElo "2480"]
[TimeControl "180+2"]
[EndTime "13:34:38 PDT"]
[Termination "Blitzstream won by resignation"]

1. g3 {[%clk 0:03:02]} 1... Nf6 {[%clk 0:02:59.6]} 2. Bg2 {[%clk 0:03:02.6]}
2... e5 {[%clk 0:02:59]} 3. b3 {[%clk 0:03:03.7]} 3... d5 {[%clk 0:02:57.2]} 4.
Bb2 {[%clk 0:03:04.9]} 4... Bd6 {[%clk 0:02:58.5]} 5. d3 {[%clk 0:03:05.3]} 5...
O-O {[%clk 0:02:58.6]} 6. Nd2 {[%clk 0:03:06.8]} 6... Re8 {[%clk 0:02:59.7]} 7.
e3 {[%clk 0:03:07.4]} 7... a5 {[%clk 0:02:59.8]} 8. a3 {[%clk 0:03:07.5]} 8...
c6 {[%clk 0:02:59.8]} 9. Ne2 {[%clk 0:03:08.6]} 9... Nbd7 {[%clk 0:02:58.6]} 10.
h3 {[%clk 0:03:09.6]} 10... Nf8 {[%clk 0:02:59.7]} 11. e4 {[%clk 0:03:03.3]}
11... dxe4 {[%clk 0:02:51.1]} 12. dxe4 {[%clk 0:02:52.7]} 12... Ng6 {[%clk
0:02:27.7]} 13. Nc4 {[%clk 0:02:50.6]} 13... Bc7 {[%clk 0:02:29.1]} 14. Qxd8
{[%clk 0:02:45.1]} 14... Rxd8 {[%clk 0:02:31]} 15. Rd1 {[%clk 0:02:33]} 15...
Be6 {[%clk 0:02:31.7]} 16. Ne3 {[%clk 0:02:31.1]} 16... Nf8 {[%clk 0:02:14.2]}
17. Nc1 {[%clk 0:02:17.8]} 17... N6d7 {[%clk 0:02:08.6]} 18. Nd3 {[%clk
0:02:13.7]} 18... f6 {[%clk 0:02:09.6]} 19. f4 {[%clk 0:02:07.6]} 19... exf4
{[%clk 0:02:07.8]} 20. gxf4 {[%clk 0:02:08.5]} 20... Bb6 {[%clk 0:01:59.9]} 21.
Ke2 {[%clk 0:02:02.9]} 21... Nc5 {[%clk 0:02:00.5]} 22. Nxc5 {[%clk 0:01:13.9]}
22... Bxc5 {[%clk 0:02:02.4]} 23. Rxd8 {[%clk 0:00:52.9]} 23... Rxd8 {[%clk
0:02:02.4]} 24. Rd1 {[%clk 0:00:54.2]} 24... Re8 {[%clk 0:01:34.6]} 25. Bc3
{[%clk 0:00:46.8]} 25... a4 {[%clk 0:01:35.3]} 26. b4 {[%clk 0:00:47]} 26... Bb6
{[%clk 0:01:31.9]} 27. Bd4 {[%clk 0:00:47.8]} 27... Bc7 {[%clk 0:01:32.9]} 28.
f5 {[%clk 0:00:43.3]} 28... Bf7 {[%clk 0:01:31.8]} 29. Bc5 {[%clk 0:00:44.5]}
29... Rd8 {[%clk 0:01:23.8]} 30. Rxd8 {[%clk 0:00:39.1]} 30... Bxd8 {[%clk
0:01:25.7]} 31. Kd3 {[%clk 0:00:33.3]} 31... Nd7 {[%clk 0:01:26.9]} 32. Bd6
{[%clk 0:00:34.4]} 32... Nb6 {[%clk 0:01:20.2]} 33. c4 {[%clk 0:00:32.8]} 33...
Nc8 {[%clk 0:01:16]} 34. Bf4 {[%clk 0:00:31.3]} 34... Kf8 {[%clk 0:01:14]} 35.
c5 {[%clk 0:00:32]} 35... Ke7 {[%clk 0:01:06.3]} 36. Nc4 {[%clk 0:00:31.6]}
36... Kd7 {[%clk 0:00:51.6]} 37. Bf3 {[%clk 0:00:30.9]} 37... Na7 {[%clk
0:00:46.3]} 38. Nd6 {[%clk 0:00:27.7]} 38... Bb3 {[%clk 0:00:46.8]} 39. Nxb7
{[%clk 0:00:23.4]} 39... Nb5 {[%clk 0:00:47.7]} 40. Na5 {[%clk 0:00:19.6]} 40...
Bxa5 {[%clk 0:00:45.8]} 41. bxa5 {[%clk 0:00:21.5]} 41... Nxa3 {[%clk
0:00:47.2]} 42. e5 {[%clk 0:00:23]} 42... Nc4 {[%clk 0:00:41.1]} 43. e6+ {[%clk
0:00:23.1]} 43... Ke7 {[%clk 0:00:36.8]} 44. a6 {[%clk 0:00:21.6]} 44... Nb2+
{[%clk 0:00:24.9]} 45. Kc3 {[%clk 0:00:22.3]} 45... a3 {[%clk 0:00:23.7]} 46.
Kxb3 {[%clk 0:00:23.5]} 46... a2 {[%clk 0:00:22.5]} 47. Kxb2 {[%clk 0:00:23.5]}
1-0

[Event "*** Titled Tuesday 3|2 Blitz"]
[Site "Chess.com"]
[Date "2017.05.02"]
[Round "3"]
[White "Malev212"]
[Black "gmjoey1"]
[Result "1/2-1/2"]
[WhiteElo "2482"]
[BlackElo "2502"]
[TimeControl "180+2"]
[EndTime "13:34:39 PDT"]
[Termination "Game drawn by repetition"]

1. e4 {[%clk 0:03:02]} 1... c6 {[%clk 0:02:59.8]} 2. Nc3 {[%clk 0:03:01.4]} 2...
d5 {[%clk 0:03:00.7]} 3. Nf3 {[%clk 0:03:03.1]} 3... dxe4 {[%clk 0:03:01.5]} 4.
Nxe4 {[%clk 0:03:03.4]} 4... Nf6 {[%clk 0:03:03]} 5. Nxf6+ {[%clk 0:03:04.2]}
5... exf6 {[%clk 0:03:04.9]} 6. d4 {[%clk 0:03:04.3]} 6... Bd6 {[%clk
0:03:05.9]} 7. Bd3 {[%clk 0:03:05.7]} 7... O-O {[%clk 0:03:06.9]} 8. O-O {[%clk
0:03:06.5]} 8... Bg4 {[%clk 0:03:06.4]} 9. Be4 {[%clk 0:03:02.9]} 9... f5 {[%clk
0:03:01.8]} 10. Bd3 {[%clk 0:03:02.5]} 10... Qf6 {[%clk 0:02:47.6]} 11. h3
{[%clk 0:02:51.9]} 11... Bh5 {[%clk 0:02:45]} 12. c3 {[%clk 0:02:51]} 12... Nd7
{[%clk 0:02:44.9]} 13. g3 {[%clk 0:02:26.8]} 13... c5 {[%clk 0:02:32.3]} 14. Kg2
{[%clk 0:02:25.3]} 14... cxd4 {[%clk 0:02:32]} 15. cxd4 {[%clk 0:02:26.1]} 15...
Nb6 {[%clk 0:02:24.2]} 16. Qb3 {[%clk 0:02:13]} 16... Bxf3+ {[%clk 0:02:16.4]}
17. Kxf3 {[%clk 0:02:13.6]} 17... f4 {[%clk 0:02:17.4]} 18. gxf4 {[%clk
0:02:04.5]} 18... Rad8 {[%clk 0:02:07.3]} 19. Be3 {[%clk 0:01:53.4]} 19... Bxf4
{[%clk 0:02:07.2]} 20. Kg2 {[%clk 0:01:47.2]} 20... Qg5+ {[%clk 0:01:59.9]} 21.
Kh1 {[%clk 0:01:46.4]} 21... Bxe3 {[%clk 0:01:50.7]} 22. fxe3 {[%clk 0:01:46.7]}
22... Qg3 {[%clk 0:01:51.3]} 23. Bf5 {[%clk 0:01:35.3]} 23... g6 {[%clk
0:01:51.2]} 24. Bg4 {[%clk 0:01:33.4]} 24... h5 {[%clk 0:01:49.3]} 25. Bf3
{[%clk 0:01:15.7]} 25... Qxh3+ {[%clk 0:01:46]} 26. Kg1 {[%clk 0:01:16.6]} 26...
Qg3+ {[%clk 0:01:42.8]} 27. Bg2 {[%clk 0:01:14.2]} 27... Nd5 {[%clk 0:01:43.5]}
28. Rf3 {[%clk 0:01:14.3]} 28... Qg5 {[%clk 0:01:43.4]} 29. Raf1 {[%clk
0:01:14.1]} 29... b6 {[%clk 0:01:37.8]} 30. e4 {[%clk 0:01:13.7]} 30... Ne7
{[%clk 0:01:20.2]} 31. Rxf7 {[%clk 0:01:13]} 31... Rxf7 {[%clk 0:01:21.2]} 32.
Qxf7+ {[%clk 0:01:11.1]} 32... Kh8 {[%clk 0:01:21.8]} 33. d5 {[%clk 0:01:09.1]}
33... Ng8 {[%clk 0:01:20.8]} 34. Qe6 {[%clk 0:00:42.7]} 34... Qg3 {[%clk
0:01:04.2]} 35. Rf3 {[%clk 0:00:38.2]} 35... Qe1+ {[%clk 0:01:03.8]} 36. Kh2
{[%clk 0:00:37.4]} 36... Qh4+ {[%clk 0:01:04]} 37. Bh3 {[%clk 0:00:36.8]} 37...
Qg5 {[%clk 0:00:58.1]} 38. Rg3 {[%clk 0:00:28.1]} 38... Qd2+ {[%clk 0:00:54.5]}
39. Rg2 {[%clk 0:00:28.1]} 39... Qf4+ {[%clk 0:00:53.1]} 40. Kh1 {[%clk
0:00:28.4]} 40... Rd6 {[%clk 0:00:48.3]} 41. Qe8 {[%clk 0:00:24.5]} 41... Qf1+
{[%clk 0:00:46.3]} 42. Kh2 {[%clk 0:00:24.2]} 42... Qf4+ {[%clk 0:00:46.6]} 43.
Kg1 {[%clk 0:00:23.7]} 43... Qe3+ {[%clk 0:00:46.2]} 44. Kh2 {[%clk 0:00:24]}
44... Qf4+ {[%clk 0:00:46.2]} 45. Kh1 {[%clk 0:00:23.3]} 45... Rf6 {[%clk
0:00:47.1]} 46. Be6 {[%clk 0:00:20.4]} 46... Qh4+ {[%clk 0:00:46.7]} 47. Kg1
{[%clk 0:00:21.2]} 47... Qe1+ {[%clk 0:00:46.7]} 48. Kh2 {[%clk 0:00:21.2]}
48... Qh4+ {[%clk 0:00:47.6]} 49. Kg1 {[%clk 0:00:22.1]} 49... Qe1+ {[%clk
0:00:47.4]} 50. Kh2 {[%clk 0:00:23]} 50... Qh4+ {[%clk 0:00:47.6]} 51. Kg1
{[%clk 0:00:21.9]} 1/2-1/2

[Event "*** Titled Tuesday 3|2 Blitz"]
[Site "Chess.com"]
[Date "2017.05.02"]
[Round "3"]
[White "Ez_Chess2016"]
[Black "aa175"]
[Result "1-0"]
[WhiteElo "1986"]
[BlackElo "1795"]
[TimeControl "180+2"]
[EndTime "13:34:40 PDT"]
[Termination "Ez_Chess2016 won by checkmate"]

1. e4 {[%clk 0:03:01.9]} 1... c5 {[%clk 0:03:00.5]} 2. Nf3 {[%clk 0:03:02.3]}
2... e6 {[%clk 0:02:58.9]} 3. b3 {[%clk 0:03:02.9]} 3... d5 {[%clk 0:02:59.5]}
4. exd5 {[%clk 0:03:03.7]} 4... exd5 {[%clk 0:03:01.4]} 5. d4 {[%clk 0:03:04.8]}
5... cxd4 {[%clk 0:03:00.2]} 6. Nxd4 {[%clk 0:03:02.9]} 6... Nc6 {[%clk
0:03:02.1]} 7. Bb2 {[%clk 0:03:03.5]} 7... Nf6 {[%clk 0:02:58.6]} 8. Be2 {[%clk
0:03:03.8]} 8... Bc5 {[%clk 0:02:58.9]} 9. O-O {[%clk 0:03:03.8]} 9... O-O
{[%clk 0:02:59.3]} 10. Nxc6 {[%clk 0:02:58.4]} 10... bxc6 {[%clk 0:02:59.6]} 11.
Nd2 {[%clk 0:03:00]} 11... a5 {[%clk 0:02:53.6]} 12. Nf3 {[%clk 0:02:52.7]}
12... Re8 {[%clk 0:02:52.8]} 13. c4 {[%clk 0:02:50]} 13... Ba6 {[%clk
0:02:47.4]} 14. Rc1 {[%clk 0:02:47.3]} 14... Qb6 {[%clk 0:02:22.3]} 15. Bxf6
{[%clk 0:02:33]} 15... gxf6 {[%clk 0:02:23]} 16. Bd3 {[%clk 0:02:34.6]} 16...
Rad8 {[%clk 0:02:06.1]} 17. Qc2 {[%clk 0:02:30.1]} 17... h6 {[%clk 0:01:51.2]}
18. cxd5 {[%clk 0:02:12.6]} 18... Bxd3 {[%clk 0:01:46.4]} 19. Qxd3 {[%clk
0:02:14.5]} 19... Rxd5 {[%clk 0:01:48.1]} 20. Qc3 {[%clk 0:02:12.4]} 20... Kg7
{[%clk 0:01:36.1]} 21. Rc2 {[%clk 0:02:10]} 21... Re6 {[%clk 0:01:23]} 22. g3
{[%clk 0:02:09]} 22... Red6 {[%clk 0:01:23.6]} 23. Kg2 {[%clk 0:02:09.5]} 23...
Re6 {[%clk 0:01:18.3]} 24. Rfc1 {[%clk 0:01:49]} 24... Ba3 {[%clk 0:01:04.2]}
25. Rf1 {[%clk 0:01:33]} 25... Bc5 {[%clk 0:01:02.6]} 26. Qc4 {[%clk 0:01:26.3]}
26... f5 {[%clk 0:00:45]} 27. Qf4 {[%clk 0:01:11.6]} 27... f6 {[%clk 0:00:31.7]}
28. Rc4 {[%clk 0:00:47]} 28... Re2 {[%clk 0:00:23.1]} 29. Nh4 {[%clk 0:00:47.5]}
29... Ree5 {[%clk 0:00:17.4]} 30. Kh3 {[%clk 0:00:41.1]} 30... Bd6 {[%clk
0:00:12.6]} 31. Qf3 {[%clk 0:00:38.6]} 31... Bc5 {[%clk 0:00:12.1]} 32. Qh5
{[%clk 0:00:30.5]} 32... Qd8 {[%clk 0:00:07.3]} 33. f4 {[%clk 0:00:30.2]} 33...
Re2 {[%clk 0:00:05.7]} 34. Qg6+ {[%clk 0:00:29.2]} 34... Kf8 {[%clk 0:00:06]}
35. Qxh6+ {[%clk 0:00:29.8]} 35... Kg8 {[%clk 0:00:06.5]} 36. Qg6+ {[%clk
0:00:27.8]} 36... Kh8 {[%clk 0:00:07.7]} 37. Nxf5 {[%clk 0:00:25.4]} 37... Qd7
{[%clk 0:00:08.1]} 38. Kg4 {[%clk 0:00:17]} 38... Rxh2 {[%clk 0:00:06.7]} 39.
Re4 {[%clk 0:00:12.4]} 39... Bf8 {[%clk 0:00:05.3]} 40. Re8 {[%clk 0:00:11.4]}
40... Rh7 {[%clk 0:00:04]} 41. Rxf8# {[%clk 0:00:12.1]} 1-0

[Event "*** Titled Tuesday 3|2 Blitz"]
[Site "Chess.com"]
[Date "2017.05.02"]
[Round "3"]
[White "Alexander_Moskalenko"]
[Black "GamayevOleg"]
[Result "1-0"]
[WhiteElo "2670"]
[BlackElo "2414"]
[TimeControl "180+2"]
[EndTime "13:34:52 PDT"]
[Termination "Alexander_Moskalenko won by resignation"]

1. e4 {[%clk 0:03:02]} 1... d6 {[%clk 0:03:01.1]} 2. d4 {[%clk 0:03:02.1]} 2...
Nf6 {[%clk 0:03:02.7]} 3. Nc3 {[%clk 0:03:02.2]} 3... e5 {[%clk 0:03:04]} 4.
dxe5 {[%clk 0:03:01.8]} 4... dxe5 {[%clk 0:03:05.9]} 5. Qxd8+ {[%clk 0:03:03.5]}
5... Kxd8 {[%clk 0:03:07.5]} 6. Bg5 {[%clk 0:03:05.3]} 6... Be7 {[%clk
0:03:08.7]} 7. O-O-O+ {[%clk 0:03:05.7]} 7... Nfd7 {[%clk 0:03:09.7]} 8. Be3
{[%clk 0:02:32]} 8... c6 {[%clk 0:03:09.8]} 9. f4 {[%clk 0:02:29.2]} 9... f6
{[%clk 0:03:10.9]} 10. Nf3 {[%clk 0:02:28.8]} 10... Kc7 {[%clk 0:03:11.7]} 11.
fxe5 {[%clk 0:02:29.5]} 11... Nxe5 {[%clk 0:03:12.2]} 12. Nxe5 {[%clk
0:02:30.4]} 12... fxe5 {[%clk 0:03:14.1]} 13. Bc4 {[%clk 0:02:29.3]} 13... Nd7
{[%clk 0:03:15]} 14. Be6 {[%clk 0:02:10.1]} 14... Bc5 {[%clk 0:02:50.7]} 15. Bg5
{[%clk 0:01:58.1]} 15... Re8 {[%clk 0:02:20.2]} 16. Bh3 {[%clk 0:01:52]} 16...
Be7 {[%clk 0:02:16.2]} 17. Be3 {[%clk 0:01:52.9]} 17... b6 {[%clk 0:02:07]} 18.
Rhf1 {[%clk 0:01:52.7]} 18... Nf6 {[%clk 0:01:58.6]} 19. Bxc8 {[%clk 0:01:53.1]}
19... Raxc8 {[%clk 0:02:00]} 20. h3 {[%clk 0:01:54.7]} 20... Rcd8 {[%clk
0:02:00.8]} 21. Rd3 {[%clk 0:01:55.8]} 21... Rxd3 {[%clk 0:02:01.1]} 22. cxd3
{[%clk 0:01:56.8]} 22... Rf8 {[%clk 0:01:56.8]} 23. Rf5 {[%clk 0:01:56.5]} 23...
Nd7 {[%clk 0:01:56.9]} 24. g4 {[%clk 0:01:57.4]} 24... g6 {[%clk 0:01:57.4]} 25.
Rxf8 {[%clk 0:01:58.1]} 25... Nxf8 {[%clk 0:01:57.4]} 26. Ne2 {[%clk 0:01:57.4]}
26... Ne6 {[%clk 0:01:58.6]} 27. Ng1 {[%clk 0:01:56.2]} 27... Bg5 {[%clk
0:01:58.4]} 28. Kd2 {[%clk 0:01:57]} 28... Bxe3+ {[%clk 0:01:58.9]} 29. Kxe3
{[%clk 0:01:57.9]} 29... Nd4 {[%clk 0:02:00.1]} 30. h4 {[%clk 0:01:51.5]} 30...
h6 {[%clk 0:01:51.4]} 31. Nh3 {[%clk 0:01:48.3]} 31... Kd6 {[%clk 0:01:36.4]}
32. h5 {[%clk 0:01:49.4]} 32... gxh5 {[%clk 0:01:31.4]} 33. gxh5 {[%clk
0:01:51.3]} 33... Ne6 {[%clk 0:01:32.6]} 34. Nf2 {[%clk 0:01:50.1]} 34... Ng7
{[%clk 0:01:29]} 35. Ng4 {[%clk 0:01:50.5]} 35... Nxh5 {[%clk 0:01:30.1]} 36.
Nxh6 {[%clk 0:01:52.1]} 36... Nf6 {[%clk 0:01:23.7]} 37. b4 {[%clk 0:01:46.9]}
37... b5 {[%clk 0:01:16.9]} 38. Nf7+ {[%clk 0:01:31.5]} 38... Ke6 {[%clk
0:01:16.4]} 39. Ng5+ {[%clk 0:01:33]} 39... Kd6 {[%clk 0:01:15.3]} 40. d4 {[%clk
0:01:34.3]} 40... exd4+ {[%clk 0:01:01.9]} 41. Kxd4 {[%clk 0:01:36.2]} 41... Nd7
{[%clk 0:01:03.2]} 42. Nf7+ {[%clk 0:01:37]} 42... Ke6 {[%clk 0:01:04.7]} 43.
Nd8+ {[%clk 0:01:38]} 43... Kd6 {[%clk 0:01:05.4]} 44. Nb7+ {[%clk 0:01:39.4]}
44... Kc7 {[%clk 0:00:49.8]} 45. Nc5 {[%clk 0:01:40.3]} 45... Nb6 {[%clk
0:00:49.4]} 46. Ke5 {[%clk 0:01:36]} 46... a5 {[%clk 0:00:45.6]} 47. bxa5 {[%clk
0:01:31.5]} 47... Nc4+ {[%clk 0:00:46.6]} 48. Kf6 {[%clk 0:01:32.9]} 48... Nxa5
{[%clk 0:00:48]} 49. e5 {[%clk 0:01:34.4]} 49... Nc4 {[%clk 0:00:42.9]} 50. e6
{[%clk 0:01:35.7]} 50... Nd6 {[%clk 0:00:41.1]} 51. e7 {[%clk 0:01:32.4]} 51...
Kb6 {[%clk 0:00:30.5]} 52. Nd7+ {[%clk 0:01:33.3]} 52... Ka5 {[%clk 0:00:28.7]}
53. Ke6 {[%clk 0:01:32.9]} 53... Ne8 {[%clk 0:00:28.9]} 54. Nf6 {[%clk
0:01:34.4]} 54... Ng7+ {[%clk 0:00:18.4]} 55. Kd7 {[%clk 0:01:33.8]} 55... Ka4
{[%clk 0:00:15.3]} 56. Kxc6 {[%clk 0:01:33.2]} 56... b4 {[%clk 0:00:16.5]} 57.
Nh5 {[%clk 0:01:34]} 57... Nf5 {[%clk 0:00:04.6]} 58. e8=Q {[%clk 0:01:34]}
58... Nd4+ {[%clk 0:00:06.5]} 59. Kc5+ {[%clk 0:01:33.9]} 59... Ka3 {[%clk
0:00:06.5]} 60. Kxd4 {[%clk 0:01:34.7]} 60... Kxa2 {[%clk 0:00:08.4]} 61. Qa4+
{[%clk 0:01:35.8]} 1-0

[Event "*** Titled Tuesday 3|2 Blitz"]
[Site "Chess.com"]
[Date "2017.05.02"]
[Round "3"]
[White "Abdodi"]
[Black "Wolverine_master"]
[Result "0-1"]
[WhiteElo "2053"]
[BlackElo "1955"]
[TimeControl "180+2"]
[EndTime "13:34:55 PDT"]
[Termination "Wolverine_master won by resignation"]

1. e4 {[%clk 0:03:01.9]} 1... d5 {[%clk 0:03:00.7]} 2. exd5 {[%clk 0:02:58.1]}
2... Qxd5 {[%clk 0:03:02.6]} 3. Nc3 {[%clk 0:02:58.2]} 3... Qd6 {[%clk
0:03:03.5]} 4. d4 {[%clk 0:02:58.5]} 4... Nf6 {[%clk 0:03:05]} 5. Nf3 {[%clk
0:02:59.3]} 5... a6 {[%clk 0:03:06.5]} 6. Bc4 {[%clk 0:02:57.7]} 6... Nc6 {[%clk
0:03:06.4]} 7. a4 {[%clk 0:02:56.6]} 7... Bg4 {[%clk 0:03:07]} 8. Be3 {[%clk
0:02:38.9]} 8... e6 {[%clk 0:03:00.7]} 9. Be2 {[%clk 0:02:35.8]} 9... O-O-O
{[%clk 0:03:00.8]} 10. h3 {[%clk 0:02:32.8]} 10... Bh5 {[%clk 0:03:01.1]} 11.
O-O {[%clk 0:02:31.7]} 11... e5 {[%clk 0:02:59.1]} 12. dxe5 {[%clk 0:02:29.1]}
12... Nxe5 {[%clk 0:03:00.1]} 13. Qxd6 {[%clk 0:02:18.1]} 13... Bxd6 {[%clk
0:02:57.6]} 14. Nxe5 {[%clk 0:02:14.9]} 14... Bxe5 {[%clk 0:02:58.4]} 15. Bxh5
{[%clk 0:02:14.1]} 15... Nxh5 {[%clk 0:03:00]} 16. Ne4 {[%clk 0:02:06.8]} 16...
Rhe8 {[%clk 0:02:33]} 17. Ng5 {[%clk 0:01:55.8]} 17... Rd7 {[%clk 0:02:19]} 18.
Rab1 {[%clk 0:01:51.7]} 18... h6 {[%clk 0:02:19.7]} 19. Nf3 {[%clk 0:01:51.5]}
19... Bd6 {[%clk 0:02:07.2]} 20. b4 {[%clk 0:01:51.2]} 20... Nf4 {[%clk
0:02:04.8]} 21. b5 {[%clk 0:01:30.3]} 21... axb5 {[%clk 0:01:50.3]} 22. axb5
{[%clk 0:01:30]} 22... Ne2+ {[%clk 0:01:51.3]} 23. Kh1 {[%clk 0:01:29.8]} 23...
Bf4 {[%clk 0:01:32.1]} 24. Bxf4 {[%clk 0:01:22.5]} 24... Nxf4 {[%clk 0:01:32.5]}
25. Ra1 {[%clk 0:01:16.8]} 25... Rde7 {[%clk 0:01:26.8]} 26. Ra8+ {[%clk
0:01:15.5]} 26... Kd7 {[%clk 0:01:27.9]} 27. Rd1+ {[%clk 0:01:16.1]} 27... Ke6
{[%clk 0:01:26.6]} 28. Nd4+ {[%clk 0:01:13.1]} 28... Kf6 {[%clk 0:01:19.3]} 29.
Rxe8 {[%clk 0:00:58]} 29... Rxe8 {[%clk 0:01:18.8]} 30. Kh2 {[%clk 0:00:56]}
30... Rd8 {[%clk 0:01:17.6]} 31. Rd2 {[%clk 0:00:42.4]} 31... Ne6 {[%clk
0:01:11.4]} 32. Nf3 {[%clk 0:00:40.3]} 32... Rxd2 {[%clk 0:01:12.3]} 33. Nxd2
{[%clk 0:00:42.2]} 33... Nd4 {[%clk 0:01:13.7]} 34. c4 {[%clk 0:00:40]} 34...
Ke5 {[%clk 0:01:11.2]} 35. Kg3 {[%clk 0:00:38.2]} 35... Nf5+ {[%clk 0:01:11]}
36. Kf3 {[%clk 0:00:37.4]} 36... Kd4 {[%clk 0:01:11.1]} 37. g4 {[%clk
0:00:26.7]} 37... Nd6 {[%clk 0:01:11.6]} 38. Kf4 {[%clk 0:00:21.2]} 38... Nxc4
{[%clk 0:01:12.1]} 39. Nb3+ {[%clk 0:00:21.1]} 39... Kd5 {[%clk 0:01:10.7]} 40.
f3 {[%clk 0:00:19.7]} 40... Nd6 {[%clk 0:01:11.4]} 41. Ke3 {[%clk 0:00:17.9]}
41... Nxb5 {[%clk 0:01:11.3]} 42. Na5 {[%clk 0:00:18.1]} 42... b6 {[%clk
0:01:11.7]} 43. Nb7 {[%clk 0:00:19.1]} 43... c5 {[%clk 0:01:12]} 44. Nd8 {[%clk
0:00:17.9]} 44... Nd6 {[%clk 0:01:11.9]} 45. f4 {[%clk 0:00:16.7]} 45... b5
{[%clk 0:01:12.5]} 46. h4 {[%clk 0:00:15.5]} 46... b4 {[%clk 0:01:13.8]} 47. g5
{[%clk 0:00:16.7]} 47... c4 {[%clk 0:01:10.3]} 48. Kd2 {[%clk 0:00:14.4]} 48...
b3 {[%clk 0:01:04.3]} 49. Kc3 {[%clk 0:00:14.6]} 49... Ke4 {[%clk 0:01:03]} 50.
Nc6 {[%clk 0:00:13.5]} 50... Kxf4 {[%clk 0:01:01]} 51. gxh6 {[%clk 0:00:13.2]}
51... gxh6 {[%clk 0:01:01.7]} 52. Nd4 {[%clk 0:00:13.7]} 52... Kg4 {[%clk
0:01:01]} 53. Ne2 {[%clk 0:00:10.4]} 53... Kxh4 {[%clk 0:01:01]} 54. Nf4 {[%clk
0:00:11.4]} 0-1